lending/lending_fUSD_20251111
["ID","MTS","AMOUNT","RATE_DAILY","PERIOD"]
[393625828,1762864251104,-151.0,0.000396,120]
[393625829,1762864251114,-151.0,0.000396,120]
[393625830,1762864251123,-151.0,0.000396,120]
[393625831,1762864251134,-151.0,0.000396,120]
[393625832,1762864251143,-183.207224,0.000396,120]
[393625833,1762864251153,-151.0,0.000396,120]
[393625834,1762864251162,-183.207224,0.000396,120]
[393625835,1762864251171,-183.207224,0.000396,120]
[393625836,1762864251181,-151.0,0.000396,120]
[393625837,1762864251191,-183.207224,0.000396,120]
[393625838,1762864251200,-163.597361,0.000396,120]
[393625839,1762864251210,-151.0,0.000396,120]
[393625840,1762864251220,-194.57592,0.000396,120]
[393625841,1762864251230,-153.35788,0.000396,120]
[393625842,1762864251239,-194.57592,0.000396,120]
[393625843,1762864251248,-151.0,0.000396,120]
[393625844,1762864251258,-194.57592,0.000396,120]
[393625845,1762864251267,-194.57592,0.000396,120]
[393625846,1762864251277,-151.0,0.000396,120]
[393625847,1762864251288,-151.0,0.000396,120]
[393625848,1762864251298,-156.955004,0.000396,120]
[393625849,1762864251311,-151.0,0.000396,120]
[393625850,1762864251321,-151.0,0.000396,120]
[393625851,1762864251331,-161.290265,0.000396,120]
[393625852,1762864251340,-163.634048,0.000396,120]
[393625853,1762864251351,-151.0,0.000396,120]
[393625854,1762864251361,-151.0,0.000396,120]
[393625855,1762864251370,-293.442961,0.000396,120]
[393625856,1762864251381,-87548.7464216,0.00039601,2]
[393625857,1762864251390,-5198.8426147,0.00039601,2]
[393625858,1762864251400,-400733.4686155,0.00039601,2]
[393625859,1762864251411,-3298.0583392,0.00039601,2]
[393625860,1762864251421,-467.0402305,0.00039601,2]
[393625861,1762864251431,-13933.1688505,0.00039601,2]
[393625862,1762864251440,-133733.5029487,0.00039601,2]
[393625863,1762864251450,-151.0,0.00039601,120]
[393625864,1762864251459,-151.0,0.00039601,120]
[393625865,1762864251469,-151.0,0.00039601,120]
[393625866,1762864251478,-152.562591,0.00039601,120]
[393625867,1762864251487,-151.0,0.00039601,120]
[393625868,1762864251497,-153.075612,0.00039601,120]
[393625869,1762864251506,-151.0,0.00039601,120]
[393625870,1762864251516,-151.0,0.00039601,120]
[393625871,1762864251526,-151.0,0.00039601,120]
[393625872,1762864251536,-151.0,0.00039601,120]
[393625873,1762864251546,-202.588021,0.00039601,120]
[393625874,1762864251557,-166.837852,0.00039601,120]
[393625875,1762864251567,-151.0,0.00039601,30]
[393625876,1762864251577,-288.059023,0.00039601,30]
[393625877,1762864251587,-151.0,0.00039601,120]
[393625878,1762864251598,-151.0,0.00039601,120]
[393625879,1762864251608,-160.651162,0.00039601,120]
[393625880,1762864251617,-151.0,0.00039601,120]
[393625881,1762864251627,-151.0,0.00039601,120]
[393625882,1762864251636,-655.675517,0.00039601,120]
[393625883,1762864251647,-151.0,0.00039601,120]
[393625884,1762864251657,-231.360619,0.00039601,120]
[393625885,1762864251666,-655.675517,0.00039601,120]
[393625886,1762864251676,-151.0,0.00039601,120]
[393625887,1762864251687,-151.0,0.00039601,120]
[393625888,1762864251698,-151.0,0.00039601,120]
[393625889,1762864251708,-655.675517,0.00039601,120]
[393625890,1762864251718,-151.0,0.00039601,120]
[393625891,1762864251728,-224.008428,0.00039601,120]
[393625892,1762864251738,-210.519062,0.00039601,120]
[393625893,1762864251748,-655.675517,0.00039601,120]
[393625894,1762864251758,-151.0,0.00039601,120]
[393625895,1762864251767,-151.0,0.00039601,120]
[393625896,1762864251777,-151.0,0.00039601,30]
[393625897,1762864251791,-152.332641,0.00039601,120]
[393625898,1762864251801,-157.48468,0.00039601,120]
[393625899,1762864251811,-151.766308,0.00039601,120]
[393625900,1762864251822,-152.080085,0.00039601,120]
[393625901,1762864251832,-166.9717,0.00039601,120]
[393625902,1762864251843,-166.9717,0.00039601,120]
[393625903,1762864251854,-338.517687,0.00039601,120]
[393625904,1762864251864,-166.9717,0.00039601,120]
[393625905,1762864251874,-338.517687,0.00039601,120]
[393625906,1762864251884,-166.9717,0.00039601,120]
[393625907,1762864251895,-338.517687,0.00039601,120]
[393625908,1762864251904,-151.0,0.00039601,120]
[393625909,1762864251914,-151.0,0.00039601,120]
[393625910,1762864251924,-338.517687,0.00039601,120]
[393625911,1762864251935,-151.0,0.00039601,120]
[393625912,1762864251945,-151.699166,0.00039601,120]
[393625913,1762864251954,-151.0,0.00039601,120]
[393625914,1762864251965,-151.0,0.00039601,120]
[393625915,1762864251976,-154.151378,0.00039601,120]
[393625916,1762864251987,-263.256226,0.00039601,120]
[393625917,1762864251997,-152.361552,0.00039601,120]
[393625918,1762864252007,-151.0,0.00039601,120]
[393625919,1762864252017,-183.207224,0.00039601,120]
[393625920,1762864252027,-151.0,0.00039601,120]
[393625921,1762864252039,-183.207224,0.00039601,120]
[393625922,1762864252049,-183.207224,0.00039601,120]
[393625923,1762864252058,-151.0,0.00039601,120]
[393625924,1762864252068,-183.207224,0.00039601,120]
[393625925,1762864252077,-151.0,0.00039601,120]
[393625926,1762864252087,-194.57592,0.00039601,120]
[393625927,1762864252096,-194.57592,0.00039601,120]
[393625928,1762864252106,-151.0,0.00039601,120]
[393625929,1762864252116,-194.57592,0.00039601,120]
[393625930,1762864252125,-194.57592,0.00039601,120]
[393625931,1762864252135,-151.0,0.00039601,120]
[393625932,1762864252145,-151.0,0.00039601,120]
[393625933,1762864252156,-151.0,0.00039601,120]
[393625934,1762864252165,-151.0,0.00039601,120]
[393625935,1762864252176,-151.0,0.00039601,120]
[393625936,1762864252186,-151.0,0.00039601,120]
[393625937,1762864252196,-179.403278,0.00039601,120]
[393625938,1762864252206,-156.956614,0.00039601,120]
[393625939,1762864252217,-151.0,0.00039601,120]
[393625940,1762864252227,-159.906294,0.00039601,120]
[393625941,1762864252238,-151.0,0.00039601,120]
[393625942,1762864252248,-218.063022,0.00039601,120]
[393625943,1762864252260,-218.063022,0.00039601,120]
[393625944,1762864252270,-218.063022,0.00039601,120]
[393625945,1762864252280,-151.0,0.00039601,120]
[393625946,1762864252292,-151.0,0.00039601,120]
[393625947,1762864252303,-218.063022,0.00039601,120]
[393625948,1762864252317,-151.0,0.00039601,120]
[393625949,1762864252327,-151.0,0.00039601,120]
[393625950,1762864252336,-151.0,0.00039601,120]
[393625951,1762864252347,-386.976691,0.00039601,120]
[393625952,1762864252356,-386.976691,0.00039601,120]
[393625953,1762864252366,-386.976691,0.00039601,120]
[393625954,1762864252375,-151.0,0.00039601,95]
[393625955,1762864252387,-386.976691,0.00039601,120]
[393625956,1762864252396,-151.0,0.00039601,120]
[393625957,1762864252407,-256.200529,0.00039601,120]
[393625958,1762864252416,-201.975051,0.00039601,120]
[393625959,1762864252426,-201.975051,0.00039601,120]
[393625960,1762864252436,-151.0,0.00039601,120]
[393625961,1762864252447,-201.975051,0.00039601,120]
[393625962,1762864252456,-151.0,0.00039601,120]
[393625963,1762864252467,-1299.000187,0.00039601,120]
[393625964,1762864252478,-151.0,0.00039601,120]
[393625965,1762864252488,-1299.000187,0.00039601,120]
[393625966,1762864252498,-151.0,0.00039601,120]
[393625967,1762864252507,-201.975051,0.00039601,120]
[393625968,1762864252516,-151.0,0.00039601,120]
[393625969,1762864252526,-151.0,0.00039601,120]
[393625970,1762864252536,-151.0,0.00039601,120]
[393625971,1762864252545,-1299.000187,0.00039601,120]
[393625972,1762864252555,-1299.000187,0.00039601,120]
[393625973,1762864252564,-151.0,0.00039601,120]
[393625974,1762864252574,-177.507441,0.00039601,15]
[393625975,1762864252583,-151.0,0.00039601,120]
[393625976,1762864252593,-154.057735,0.00039601,120]
[393625977,1762864252603,-177.507441,0.00039601,15]
[393625978,1762864252612,-307.721433,0.00039601,120]
[393625979,1762864252623,-177.507441,0.00039601,15]
[393625980,1762864252632,-307.721433,0.00039601,120]
[393625981,1762864252642,-177.507441,0.00039601,15]
[393625982,1762864252651,-307.721433,0.00039601,120]
[393625983,1762864252661,-307.721433,0.00039601,120]
[393625984,1762864252672,-260.239907,0.00039601,120]
[393625985,1762864252682,-255.663913,0.00039601,120]
[393625986,1762864252692,-260.239907,0.00039601,120]
[393625987,1762864252703,-255.663913,0.00039601,120]
[393625988,1762864252714,-171.09974,0.00039601,120]
[393625989,1762864252724,-260.239907,0.00039601,120]
[393625990,1762864252734,-255.663913,0.00039601,120]
[393625991,1762864252744,-171.09974,0.00039601,120]
[393625992,1762864252753,-260.239907,0.00039601,120]
[393625993,1762864252763,-255.663913,0.00039601,120]
[393625994,1762864252772,-171.09974,0.00039601,120]
[393625995,1762864252782,-171.09974,0.00039601,120]
[393625996,1762864252793,-151.0,0.00039601,120]
[393625997,1762864252803,-151.0,0.00039601,120]
[393625998,1762864252813,-151.0,0.00039601,120]
[393625999,1762864252823,-151.0,0.00039601,120]
[393626000,1762864252833,-151.0,0.00039601,120]
[393626001,1762864252843,-151.0,0.00039601,91]
[393626002,1762864252854,-151.0,0.00039601,120]
[393626003,1762864252864,-151.0,0.00039601,120]
[393626004,1762864252875,-151.0,0.00039601,120]
[393626005,1762864252886,-151.0,0.00039601,120]
[393626006,1762864252898,-543.64087408,0.0003961,2]
[393626007,1762864252907,-1000.0,0.00039612,7]
[393626008,1762864252917,-151.22192366,0.0003962,30]
[393626009,1762864252927,-6040.0,0.00039624,5]
[393626010,1762864252937,-5297.35,0.00039625,30]
[393626011,1762864252946,-1000.0,0.00039628,30]
[393626012,1762864252955,-1000.0,0.00039628,30]
[393626013,1762864252965,-1000.0,0.00039628,30]
[393626014,1762864252974,-1000.0,0.00039628,30]
[393626015,1762864252984,-300.0,0.0003963,2]
[393626016,1762864252994,-211.15,0.0003963,60]
[393626017,1762864253004,-1008.26056406,0.00039631,30]
[393626018,1762864253014,-300.0,0.00039633,2]
[393626019,1762864253024,-1000.0,0.00039637,7]
[393626020,1762864253034,-460.0,0.00039639,120]
[393626021,1762864253044,-500.0,0.00039639,120]
[393626022,1762864253054,-2000.0,0.00039639,2]
[393626023,1762864253064,-500.0,0.00039639,120]
[393626024,1762864253073,-500.0,0.00039641,120]
[393626025,1762864253083,-325.64626727,0.00039641,120]
[393626026,1762864253093,-2000.0,0.00039641,2]
[393626027,1762864253103,-2000.0,0.00039641,2]
[393626028,1762864253112,-500.0,0.00039641,120]
[393626029,1762864253122,-500.0,0.00039641,120]
[393626030,1762864253132,-500.0,0.00039641,120]
[393626031,1762864253142,-1381.2519634,0.00039643,7]
[393626032,1762864253152,-250.38392195,0.00039643,7]
[393626033,1762864253162,-155.28344094,0.00039643,7]
[393626034,1762864253172,-537.0,0.00039644,120]
[393626035,1762864253181,-151.0,0.0003965,2]
[393626036,1762864253191,-151.0,0.0003965,2]
[393626037,1762864253201,-2000.0,0.0003965,2]
[393626038,1762864253211,-2000.0,0.0003965,2]
[393626039,1762864253221,-2000.0,0.0003965,2]
[393626040,1762864253231,-2000.0,0.0003965,2]
[393626041,1762864253241,-156.441113,0.0003965,60]
[393626042,1762864253251,-186.338707,0.0003965,60]
[393626043,1762864253261,-150.271484,0.0003965,60]
[393626044,1762864253271,-156.441113,0.0003965,60]
[393626045,1762864253281,-500.0,0.0003965,120]
[393626046,1762864253291,-500.0,0.0003965,120]
[393626047,1762864253302,-500.0,0.0003965,120]
[393626048,1762864253316,-500.0,0.0003965,120]
[393626049,1762864253325,-500.0,0.0003965,120]
[393626050,1762864253335,-150.0,0.0003965,20]
[393626051,1762864253346,-2030.6862,0.0003965,2]
[393626052,1762864253356,-160.810076,0.0003965,60]
[393626053,1762864253367,-156.460359,0.0003965,60]
[393626054,1762864253377,-151.0,0.0003965,30]
[393626055,1762864253389,-151.0,0.0003965,30]
[393626056,1762864253400,-200.0,0.0003965,30]
[393626057,1762864253538,-151.0,0.0003965,30]
[393626058,1762864253548,-250.0,0.0003965,30]
[393626059,1762864253558,-151.0,0.0003965,30]
[393626060,1762864253569,-600.0,0.0003965,30]
[393626061,1762864253579,-151.0,0.0003965,30]
[393626062,1762864253589,-524.81126104,0.0003965,30]
[393626063,1762864253599,-203.17721759,0.0003965,30]
[393626064,1762864253610,-151.0,0.0003965,30]
[393626065,1762864253621,-152.50844048,0.0003965,30]
[393626066,1762864253631,-151.0,0.0003965,30]
[393626067,1762864253640,-250.0,0.0003965,30]
[393626068,1762864253650,-600.0,0.0003965,30]
[393626069,1762864253660,-151.0,0.0003965,30]
[393626070,1762864253670,-151.0,0.0003965,30]
[393626071,1762864253680,-39040.80862955,0.0003965,30]
[393626072,1762864253691,-151.0,0.0003965,30]
[393626073,1762864253700,-250.0,0.0003965,30]
[393626074,1762864253710,-600.0,0.0003965,30]
[393626075,1762864253720,-151.0,0.0003965,30]
[393626076,1762864253730,-151.0,0.0003965,30]
[393626077,1762864253740,-151.0,0.0003965,30]
[393626078,1762864253751,-250.0,0.0003965,30]
[393626079,1762864253761,-673.37345586,0.0003965,30]
[393626080,1762864253772,-151.0,0.0003965,30]
[393626081,1762864253783,-151.0,0.0003965,30]
[393626082,1762864253794,-151.0,0.0003965,30]
[393626083,1762864253804,-500.0,0.0003965,30]
[393626084,1762864253815,-151.0,0.0003965,30]
[393626085,1762864253825,-151.0,0.0003965,30]
[393626086,1762864253835,-250.0,0.0003965,30]
[393626087,1762864253845,-151.0,0.0003965,30]
[393626088,1762864253855,-500.0,0.0003965,30]
[393626089,1762864253864,-151.0,0.0003965,30]
[393626090,1762864253874,-151.0,0.0003965,30]
[393626091,1762864253883,-151.0,0.0003965,30]
[393626092,1762864253892,-250.0,0.0003965,30]
[393626093,1762864253902,-151.0,0.0003965,30]
[393626094,1762864253911,-500.0,0.0003965,30]
[393626095,1762864253921,-217.13992439,0.0003965,30]
[393626096,1762864253931,-151.0,0.0003965,30]
[393626097,1762864253940,-250.0,0.0003965,30]
[393626098,1762864253950,-151.0,0.0003965,30]
[393626099,1762864253959,-151.0,0.0003965,30]
[393626100,1762864253969,-151.0,0.0003965,30]
[393626101,1762864253978,-500.0,0.0003965,30]
[393626102,1762864253987,-151.0,0.0003965,30]
[393626103,1762864253997,-153.91462054,0.0003965,30]
[393626104,1762864254007,-151.0,0.0003965,30]
[393626105,1762864254017,-250.0,0.0003965,30]
[393626106,1762864254026,-151.0,0.0003965,30]
[393626107,1762864254036,-500.0,0.0003965,30]
[393626108,1762864254045,-151.0,0.0003965,30]
[393626109,1762864254055,-264.48609165,0.0003965,30]
[393626110,1762864254065,-151.0,0.0003965,30]
[393626111,1762864254075,-414.0,0.0003965,30]
[393626112,1762864254085,-300.0,0.0003965,10]
[393626113,1762864254095,-500.0,0.0003965,30]
[393626114,1762864254104,-6888.0,0.0003965,30]
[393626115,1762864254115,-151.0,0.0003965,30]
[393626116,1762864254125,-151.0,0.0003965,30]
[393626117,1762864254135,-429.318,0.0003965,30]
[393626118,1762864254145,-500.0,0.0003965,30]
[393626119,1762864254155,-7142.856,0.0003965,30]
[393626120,1762864254166,-151.0,0.0003965,30]
[393626121,1762864254176,-151.0,0.0003965,30]
[393626122,1762864254186,-151.0,0.0003965,30]
[393626123,1762864254195,-445.202766,0.0003965,30]
[393626124,1762864254206,-500.0,0.0003965,30]
[393626125,1762864254216,-7407.141672,0.0003965,30]
[393626126,1762864254225,-160.0,0.0003965,30]
[393626127,1762864254235,-151.0,0.0003965,30]
[393626128,1762864254245,-200.0,0.0003965,30]
[393626129,1762864254255,-151.0,0.0003965,30]
[393626130,1762864254265,-151.0,0.0003965,30]
[393626131,1762864254275,-461.67526834,0.0003965,30]
[393626132,1762864254284,-151.0,0.0003965,30]
[393626133,1762864254295,-500.0,0.0003965,30]
[393626134,1762864254305,-153.257485,0.0003965,60]
[393626135,1762864254318,-160.0,0.0003965,30]
[393626136,1762864254328,-7681.20591386,0.0003965,30]
[393626137,1762864254338,-151.0,0.0003965,30]
[393626138,1762864254347,-202.58152099,0.0003965,30]
[393626139,1762864254358,-151.0,0.0003965,30]
[393626140,1762864254367,-478.75725327,0.0003965,30]
[393626141,1762864254376,-151.0,0.0003965,30]
[393626142,1762864254390,-156.587,0.0003965,30]
[393626143,1762864254400,-500.0,0.0003965,30]
[393626144,1762864254410,-666.0,0.0003965,10]
[393626145,1762864254420,-7965.41053268,0.0003965,30]
[393626146,1762864254430,-154.08540463,0.0003965,30]
[393626147,1762864254439,-151.0,0.0003965,30]
[393626148,1762864254449,-160.0,0.0003965,30]
[393626149,1762864254458,-151.0,0.0003965,30]
[393626150,1762864254468,-496.47127164,0.0003965,30]
[393626151,1762864254479,-162.380719,0.0003965,30]
[393626152,1762864254488,-500.0,0.0003965,30]
[393626153,1762864254498,-8260.13072239,0.0003965,30]
[393626154,1762864254508,-160.0,0.0003965,30]
[393626155,1762864254519,-151.0,0.0003965,30]
[393626156,1762864254528,-514.84070869,0.0003965,30]
[393626157,1762864254538,-151.0,0.0003965,30]
[393626158,1762864254548,-500.0,0.0003965,30]
[393626159,1762864254559,-8565.75555911,0.0003965,30]
[393626160,1762864254569,-168.3888056,0.0003965,30]
[393626161,1762864254579,-151.0,0.0003965,30]
[393626162,1762864254588,-160.0,0.0003965,30]
[393626163,1762864254598,-533.88981491,0.0003965,30]
[393626164,1762864254607,-151.0,0.0003965,30]
[393626165,1762864254617,-500.0,0.0003965,30]
[393626166,1762864254627,-8882.6885148,0.0003965,30]
[393626167,1762864254636,-174.61919141,0.0003965,30]
[393626168,1762864254645,-151.0,0.0003965,30]
[393626169,1762864254655,-553.64373807,0.0003965,30]
[393626170,1762864254664,-160.0,0.0003965,30]
[393626171,1762864254673,-151.0,0.0003965,30]
[393626172,1762864254687,-250.0,0.0003965,30]
[393626173,1762864254705,-9211.34798985,0.0003965,30]
[393626174,1762864254722,-151.0,0.0003965,30]
[393626175,1762864254732,-151.0,0.0003965,30]
[393626176,1762864254742,-176.78201091,0.0003965,30]
[393626177,1762864254753,-574.12855637,0.0003965,30]
[393626178,1762864254762,-151.0,0.0003965,30]
[393626179,1762864254772,-193.63459898,0.0003965,30]
[393626180,1762864254782,-250.0,0.0003965,30]
[393626181,1762864254792,-151.0,0.0003965,30]
[393626182,1762864254801,-595.37131296,0.0003965,30]
[393626183,1762864254811,-156.587,0.0003965,30]
[393626184,1762864254820,-9552.16786547,0.0003965,30]
[393626185,1762864254830,-260.74757872,0.0003965,30]
[393626186,1762864254839,-250.0,0.0003965,30]
[393626187,1762864254849,-617.40005154,0.0003965,30]
[393626188,1762864254859,-9905.5980765,0.0003965,30]
[393626189,1762864254870,-162.380719,0.0003965,30]
[393626190,1762864254879,-151.0,0.0003965,30]
[393626191,1762864254888,-250.0,0.0003965,30]
[393626192,1762864254898,-8601.50920716,0.0003965,30]
[393626193,1762864254907,-168.3888056,0.0003965,30]
[393626194,1762864254917,-640.24385345,0.0003965,30]
[393626195,1762864254926,-151.0,0.0003965,30]
[393626196,1762864254936,-250.0,0.0003965,30]
[393626197,1762864254945,-250.0,0.0003965,30]
[393626198,1762864254955,-663.93287602,0.0003965,30]
[393626199,1762864254964,-174.61919141,0.0003965,30]
[393626200,1762864254973,-151.0,0.0003965,30]
[393626201,1762864254983,-250.0,0.0003965,30]
[393626202,1762864254992,-181.08010149,0.0003965,30]
[393626203,1762864255002,-688.49839244,0.0003965,30]
[393626204,1762864255011,-151.0,0.0003965,30]
[393626205,1762864255020,-250.0,0.0003965,30]
[393626206,1762864255030,-250.0,0.0003965,30]
[393626207,1762864255039,-250.0,0.0003965,30]
[393626208,1762864255049,-713.97283296,0.0003965,30]
[393626209,1762864255058,-173.63104048,0.0003965,30]
[393626210,1762864255068,-200.0,0.0003965,30]
[393626211,1762864255077,-151.0,0.0003965,30]
[393626212,1762864255087,-250.0,0.0003965,30]
[393626213,1762864255096,-250.0,0.0003965,30]
[393626214,1762864255106,-250.0,0.0003965,30]
[393626215,1762864255116,-740.38982778,0.0003965,30]
[393626216,1762864255126,-207.4,0.0003965,30]
[393626217,1762864255136,-151.0,0.0003965,30]
[393626218,1762864255146,-250.0,0.0003965,30]
[393626219,1762864255155,-250.0,0.0003965,30]
[393626220,1762864255165,-250.0,0.0003965,30]
[393626221,1762864255175,-767.7842514,0.0003965,30]
[393626222,1762864255184,-215.0738,0.0003965,30]
[393626223,1762864255193,-151.0,0.0003965,30]
[393626224,1762864255202,-250.0,0.0003965,30]
[393626225,1762864255211,-250.0,0.0003965,30]
[393626226,1762864255221,-250.0,0.0003965,30]
[393626227,1762864255230,-796.19226871,0.0003965,30]
[393626228,1762864255239,-500.0,0.0003965,30]
[393626229,1762864255249,-223.0315306,0.0003965,30]
[393626230,1762864255258,-200.0,0.0003965,30]
[393626231,1762864255267,-151.0,0.0003965,30]
[393626232,1762864255277,-250.0,0.0003965,30]
[393626233,1762864255287,-250.0,0.0003965,30]
[393626234,1762864255297,-250.0,0.0003965,30]
[393626235,1762864255312,-825.65138266,0.0003965,30]
[393626236,1762864255321,-231.28369723,0.0003965,30]
[393626237,1762864255331,-500.0,0.0003965,30]
[393626238,1762864255341,-207.4,0.0003965,30]
[393626239,1762864255352,-151.0,0.0003965,30]
[393626240,1762864255362,-250.0,0.0003965,30]
[393626241,1762864255371,-250.0,0.0003965,30]
[393626242,1762864255382,-250.0,0.0003965,30]
[393626243,1762864255392,-500.0,0.0003965,30]
[393626244,1762864255401,-239.84119403,0.0003965,30]
[393626245,1762864255411,-215.0738,0.0003965,30]
[393626246,1762864255420,-151.0,0.0003965,30]
[393626247,1762864255429,-250.0,0.0003965,30]
[393626248,1762864255439,-250.0,0.0003965,30]
[393626249,1762864255447,-250.0,0.0003965,30]
[393626250,1762864255456,-248.71531821,0.0003965,30]
[393626251,1762864255466,-500.0,0.0003965,30]
[393626252,1762864255476,-177.5262,0.0003965,30]
[393626253,1762864255485,-152.48973594,0.0003965,30]
[393626254,1762864255495,-500.0,0.0003965,30]
[393626255,1762864255506,-250.0,0.0003965,30]
[393626256,1762864255515,-250.0,0.0003965,30]
[393626257,1762864255525,-250.0,0.0003965,30]
[393626258,1762864255534,-151.0,0.0003965,30]
[393626259,1762864255543,-500.0,0.0003965,30]
[393626260,1762864255553,-257.91778498,0.0003965,30]
[393626261,1762864255562,-500.0,0.0003965,30]
[393626262,1762864255571,-250.0,0.0003965,30]
[393626263,1762864255580,-250.0,0.0003965,30]
[393626264,1762864255590,-289.5339604,0.0003965,30]
[393626265,1762864255600,-151.0,0.0003965,30]
[393626266,1762864255611,-500.0,0.0003965,30]
[393626267,1762864255621,-267.46074303,0.0003965,30]
[393626268,1762864255631,-500.0,0.0003965,30]
[393626269,1762864255641,-250.0,0.0003965,30]
[393626270,1762864255650,-250.0,0.0003965,30]
[393626271,1762864255661,-151.0,0.0003965,30]
[393626272,1762864255671,-500.0,0.0003965,30]
[393626273,1762864255680,-277.35679052,0.0003965,30]
[393626274,1762864255691,-500.0,0.0003965,30]
[393626275,1762864255700,-250.0,0.0003965,30]
[393626276,1762864255711,-250.0,0.0003965,30]
[393626277,1762864255720,-151.0,0.0003965,30]
[393626278,1762864255730,-207.31242024,0.0003965,30]
[393626279,1762864255739,-287.61899177,0.0003965,30]
[393626280,1762864255748,-500.0,0.0003965,30]
[393626281,1762864255758,-250.0,0.0003965,30]
[393626282,1762864255767,-250.0,0.0003965,30]
[393626283,1762864255776,-151.0,0.0003965,30]
[393626284,1762864255785,-298.26089446,0.0003965,30]
[393626285,1762864255795,-151.0,0.0003965,30]
[393626286,1762864255804,-500.0,0.0003965,30]
[393626287,1762864255815,-250.0,0.0003965,30]
[393626288,1762864255824,-151.0,0.0003965,30]
[393626289,1762864255833,-151.0,0.0003965,30]
[393626290,1762864255843,-289.56224679,0.0003965,30]
[393626291,1762864255852,-500.0,0.0003965,30]
[393626292,1762864255861,-250.0,0.0003965,30]
[393626293,1762864255870,-250.0,0.0003965,30]
[393626294,1762864255879,-255.49147654,0.0003965,30]
[393626295,1762864255888,-151.0,0.0003965,30]
[393626296,1762864255899,-500.0,0.0003965,30]
[393626297,1762864255908,-250.0,0.0003965,30]
[393626298,1762864255917,-250.0,0.0003965,30]
[393626299,1762864255927,-151.0,0.0003965,30]
[393626300,1762864255936,-500.0,0.0003965,30]
[393626301,1762864255946,-250.0,0.0003965,30]
[393626302,1762864255955,-250.0,0.0003965,30]
[393626303,1762864255964,-151.0,0.0003965,30]
[393626304,1762864255973,-500.0,0.0003965,30]
[393626305,1762864255982,-250.0,0.0003965,30]
[393626306,1762864255991,-151.0,0.0003965,30]
[393626307,1762864256001,-500.0,0.0003965,30]
[393626308,1762864256009,-250.0,0.0003965,30]
[393626309,1762864256019,-151.0,0.0003965,30]
[393626310,1762864256028,-500.0,0.0003965,30]
[393626311,1762864256037,-151.0,0.0003965,30]
[393626312,1762864256047,-500.0,0.0003965,30]
[393626313,1762864256057,-500.0,0.0003965,30]
[393626314,1762864256066,-151.0,0.0003965,30]
[393626315,1762864256075,-500.0,0.0003965,30]
[393626316,1762864256085,-518.5,0.0003965,30]
[393626317,1762864256094,-250.0,0.0003965,30]
[393626318,1762864256103,-500.0,0.0003965,30]
[393626319,1762864256113,-151.0,0.0003965,30]
[393626320,1762864256122,-537.6845,0.0003965,30]
[393626321,1762864256131,-250.0,0.0003965,30]
[393626322,1762864256140,-500.0,0.0003965,30]
[393626323,1762864256150,-151.0,0.0003965,30]
[393626324,1762864256159,-557.5788265,0.0003965,30]
[393626325,1762864256168,-250.0,0.0003965,30]
[393626326,1762864256177,-151.0,0.0003965,30]
[393626327,1762864256186,-500.0,0.0003965,30]